bitfinex/quotes_ETHUSD_20210401
["timestamp","ask_amount","ask_price","bid_price","bid_amount"]
[1617250240470,2.5,1926.2,1925.6,4.26682542]
[1617250240668,2.5,1926.2,1925.8,7.7869]
[1617250240865,2.5,1926.2,1925.6,10.92253]
[1617250241069,1.5,1926.2,1925.6,10.92253]
[1617250241467,2.5,1926.1,1925.7,2.66349962]
[1617250241667,2.5,1926.1,1925.7,11.14919962]
[1617250241869,2.5,1926.1,1926.0,0.39]
[1617250242067,2.5,1926.1,1926.0,3.05349962]
[1617250242466,2.5,1926.1,1926.0,0.39]
[1617250242711,2.5,1926.2,1926.0,0.39]
[1617250243115,2.5,1926.2,1925.9,8.04612135]
[1617250243514,2.5,1926.0,1925.9,0.11968135]
[1617250243713,24.41349962,1926.0,1925.6,0.09406894]
[1617250243912,24.41349962,1926.0,1925.4,1.1919704]
[1617250243913,0.4,1925.9,1925.4,1.1919704]
[1617250244112,3.06349962,1925.9,1925.4,1.1919704]
[1617250244313,8.16971,1925.8,1925.4,1.1919704]
[1617250244713,8.16971,1925.8,1925.2,7.92948]
[1617250244916,0.287,1925.7,1925.2,7.92948]
[1617250245113,0.287,1925.7,1925.2,11.12948]
[1617250245318,0.28,1925.9,1925.4,0.52]
[1617250245716,0.28,1925.9,1925.4,0.38]
[1617250246116,0.14,1925.9,1925.4,0.38]
[1617250246919,7.92931,1925.9,1925.4,0.38]
[1617250247119,10.57626846,1925.9,1925.4,0.38]
[1617250247319,10.96626846,1925.9,1925.3,7.78892]
[1617250248543,2.5,1925.4,1925.3,8.19892]
[1617250248940,2.5,1925.4,1925.3,7.78892]
[1617250249141,2.5,1925.4,1925.2,0.28]
[1617250249341,2.5,1925.4,1925.0,1.1919704]
[1617250249544,2.5,1925.4,1924.9,0.09406894]
[1617250249744,2.5,1925.4,1924.9,0.37406894]
[1617250250566,2.5,1925.0,1924.9,0.37406894]
[1617250250765,2.5,1925.0,1924.9,0.09406894]
[1617250250966,2.5,1925.0,1924.6,0.57620098]
[1617250251167,1.5,1925.0,1924.7,0.39]
[1617250251566,1.1737,1925.1,1924.7,0.39]
[1617250251567,2.5,1924.8,1924.7,0.39]
[1617250251767,10.2368,1924.8,1924.7,0.39]
[1617250252967,10.2368,1924.8,1924.6,0.39]
[1617250253193,10.2368,1924.8,1924.6,2.56207957]
[1617250253593,10.2368,1924.8,1924.7,12.98]
[1617250253594,7.7368,1924.8,1924.7,12.98]
[1617250253794,7.7368,1924.8,1924.7,0.38]
[1617250253993,7.7368,1924.8,1924.7,11.5425404]
[1617250254194,7.6868,1924.8,1924.7,19.0725404]
[1617250254599,7.6868,1924.8,1924.7,20.2645108]
[1617250254797,7.6868,1924.8,1924.7,15.2545108]
[1617250255596,7.6868,1924.8,1924.7,14.0625404]
[1617250256019,6.6868,1924.8,1924.7,14.0625404]
[1617250256618,6.6868,1924.8,1924.7,15.2545108]
[1617250256819,2.9,1925.4,1924.7,15.2545108]
[1617250257018,3.04,1925.4,1924.8,0.09406894]
[1617250257619,2.5,1925.1,1924.7,9.6424304]
[1617250257819,2.5,1925.1,1924.7,12.6424304]
[1617250258442,2.5,1925.1,1924.7,4.8519704]
[1617250258644,2.5,1925.0,1924.7,3.66]
[1617250259443,10.9427,1925.0,1924.7,0.28]
[1617250259644,2.5,1924.8,1924.5,0.14426515]
[1617250259843,2.5,1924.8,1924.6,0.41]
[1617250260845,2.5,1924.8,1924.5,0.14426515]
[1617250261068,1.5,1924.8,1924.5,0.14426515]
[1617250261467,1.5,1924.8,1924.3,1.6019704]
[1617250261667,9.1799,1924.6,1924.3,1.8819704]
[1617250262067,9.1799,1924.6,1924.3,0.69]
[1617250263472,2.5,1924.4,1924.3,0.69]
[1617250263689,2.5,1924.4,1924.3,0.41]
[1617250265692,2.5,1924.4,1924.1,12.15049635]
[1617250265895,2.5,1924.4,1924.1,12.56049635]
[1617250266092,1.78,1924.4,1924.1,16.00049635]
[1617250266325,1.78,1924.4,1924.1,14.80852595]
[1617250266525,2.5,1924.5,1924.1,14.80852595]
[1617250266726,2.5,1924.5,1924.2,0.4]
[1617250266925,2.5,1924.5,1924.2,0.708]
[1617250267526,2.5,1924.4,1924.2,8.50126]
[1617250267725,2.36162215,1924.4,1924.2,10.6596782]
[1617250267925,2.36162215,1924.4,1924.3,0.39]
[1617250269543,2.36162215,1924.4,1924.2,0.308]
[1617250269745,10.37122215,1924.4,1924.1,6.0219704]
[1617250270544,8.0096,1924.4,1924.1,6.0219704]
[1617250270745,8.0096,1924.4,1924.1,4.83]
[1617250270946,8.0096,1924.4,1924.1,12.62363]
[1617250271149,8.0096,1924.4,1924.1,4.44]
[1617250271569,2.5,1924.2,1924.1,1.0]
[1617250272367,9.15,1924.2,1924.1,1.0]
[1617250272669,11.78135482,1924.2,1924.1,1.0]
[1617250272869,9.15,1924.2,1924.1,1.0]
[1617250273268,2.5,1924.2,1924.1,1.0]
[1617250274497,2.5,1924.3,1924.1,1.0]
[1617250275497,8.7569,1924.4,1924.1,1.0]
[1617250275498,11.2569,1924.4,1924.1,1.0]
[1617250276498,2.5,1924.3,1924.1,1.0]
[1617250277917,2.5,1924.3,1924.1,0.66753758]
[1617250278519,2.5,1924.2,1924.1,0.66753758]
[1617250281550,2.5,1924.3,1924.1,0.66753758]
[1617250282769,10.29591,1924.3,1924.1,0.66753758]
[1617250283970,10.69591,1924.3,1924.1,0.66753758]
[1617250284598,10.29591,1924.3,1924.1,0.66753758]
[1617250286599,2.5,1924.2,1924.1,0.66753758]
[1617250287441,10.29634,1924.2,1924.1,0.66753758]
[1617250288641,2.5,1924.2,1924.1,0.66753758]
[1617250290242,20.6,1924.2,1924.1,0.66753758]
[1617250291043,12.5,1924.2,1924.1,0.66753758]
[1617250295908,20.67609,1924.2,1924.1,0.66753758]
[1617250296108,43.83609,1924.2,1924.1,0.66753758]
[1617250296907,25.68609,1924.2,1924.1,0.66753758]
[1617250297107,35.53609,1924.2,1924.1,0.66753758]
[1617250297311,25.68609,1924.2,1924.1,0.66753758]
[1617250298120,25.30609,1924.2,1924.1,0.66753758]
[1617250298320,20.29609,1924.2,1924.1,0.66753758]
[1617250300753,20.68609,1924.2,1924.1,0.66753758]
[1617250302346,20.03609,1924.2,1924.1,0.66753758]
[1617250304202,25.43609,1924.2,1924.1,0.66753758]
[1617250304603,25.69609,1924.2,1924.1,0.66753758]
[1617250305803,25.30609,1924.2,1924.1,0.66753758]
[1617250308004,20.29609,1924.2,1924.1,0.66753758]
[1617250309221,20.67609,1924.2,1924.1,0.66753758]
[1617250309823,20.29609,1924.2,1924.1,0.66753758]
[1617250314476,20.69609,1924.2,1924.1,0.66753758]
[1617250315277,20.29609,1924.2,1924.1,0.66753758]
[1617250315878,33.97609,1924.2,1924.1,0.66753758]
[1617250316104,38.98609,1924.2,1924.1,0.66753758]
[1617250316303,46.33423875,1924.2,1924.1,0.66753758]
[1617250316512,54.33423875,1924.2,1924.1,0.66753758]
[1617250317103,30.05,1924.1,1923.6,1.0]
[1617250317306,0.39,1923.8,1923.6,1.0]
[1617250317504,30.64470166,1923.7,1923.6,1.0]
[1617250318307,39.64502166,1923.7,1923.6,1.0]
[1617250318721,42.14502166,1923.7,1923.6,1.0]
[1617250319523,40.94502166,1923.7,1923.6,1.0]
[1617250319723,13.29502166,1923.7,1923.6,1.0]
[1617250319924,10.30032,1923.7,1923.6,1.0]
[1617250320324,12.90502166,1923.7,1923.6,1.0]
[1617250320725,10.30032,1923.7,1923.6,1.0]
[1617250322748,21.90032,1923.7,1923.6,1.0]
[1617250323149,27.29032,1923.7,1923.6,1.0]
[1617250324178,10.68032,1923.7,1923.6,1.0]
[1617250324781,20.38032,1923.7,1923.6,1.0]
[1617250325579,25.39032,1923.7,1923.6,1.0]
[1617250327004,15.69032,1923.7,1923.6,1.0]
[1617250327205,15.31032,1923.7,1923.6,1.0]
[1617250327805,20.86032,1923.7,1923.6,1.0]
[1617250328004,15.31032,1923.7,1923.6,1.0]
[1617250329005,10.30032,1923.7,1923.6,1.0]
[1617250329223,10.25032,1923.7,1923.6,1.0]
[1617250329657,16.55032,1923.7,1923.6,1.0]
[1617250330657,16.20032,1923.7,1923.6,1.0]
[1617250331862,10.25032,1923.7,1923.6,1.0]
[1617250336773,2.5,1923.7,1923.6,1.4]
[1617250337603,7.79655,1924.0,1923.6,1.4]
[1617250337803,7.79655,1924.0,1923.8,0.41]
[1617250339604,2.5,1923.9,1923.8,0.41]
[1617250341229,10.2969,1923.9,1923.8,0.41]
[1617250342648,10.2969,1923.9,1923.7,0.28]
[1617250343048,10.2969,1923.9,1923.6,1.0]
[1617250345478,2.5,1923.8,1923.6,1.0]
[1617250345881,7.79816,1923.7,1923.6,1.0]
[1617250346283,2.5,1923.8,1923.6,1.0]
[1617250346481,2.5,1923.8,1923.7,0.4]
[1617250346682,15.01,1924.2,1923.7,0.4]
[1617250346683,2.5,1924.0,1923.7,0.4]
[1617250346882,2.5,1924.0,1923.9,0.39]
[1617250347720,2.5,1924.0,1923.6,9.0903]
[1617250347921,2.5,1924.0,1923.7,0.41]
[1617250348923,10.297,1924.0,1923.6,4.194]
[1617250349121,10.297,1924.0,1923.6,1.294]
[1617250349923,16.0588164,1924.0,1923.6,1.294]
[1617250350523,2.5,1923.7,1923.6,1.294]
[1617250350723,2.5,1923.7,1923.6,1.0]
[1617250351324,10.29845,1923.7,1923.6,1.0]
[1617250352124,2.5,1923.7,1923.6,1.0]
[1617250352724,2.5,1923.7,1923.6,1.4]
[1617250353355,2.5,1923.7,1923.6,9.19634]
[1617250353555,17.79659,1924.2,1923.7,0.336]
[1617250353556,2.5,1924.0,1923.7,0.336]
[1617250354357,10.29729,1924.0,1923.7,0.336]
[1617250354558,2.5,1923.9,1923.7,0.336]
[1617250355777,10.29743,1923.9,1923.7,0.336]
[1617250356176,10.29743,1923.9,1923.6,1.28]
[1617250356576,2.5,1923.8,1923.6,1.28]
[1617250356975,2.5,1923.8,1923.6,1.0]
[1617250358601,10.29829,1923.7,1923.6,1.0]
[1617250360601,13.29299166,1923.7,1923.6,1.0]
[1617250361447,19.69299166,1923.7,1923.6,1.0]
[1617250364252,13.29299166,1923.7,1923.6,1.0]
[1617250365850,10.68829,1923.7,1923.6,1.0]
[1617250366275,10.29829,1923.7,1923.6,1.0]
[1617250367676,2.5,1923.7,1923.6,1.0]
[1617250368728,2.5,1924.0,1923.7,0.322]
[1617250368927,2.50606869,1924.0,1923.7,0.322]
[1617250369127,2.5,1924.0,1923.8,0.41]
[1617250369328,2.5,1924.0,1923.9,0.4]
[1617250370528,2.5,1924.1,1923.9,0.4]
[1617250371529,2.5,1924.0,1923.9,0.4]
[1617250371927,2.45,1924.0,1923.9,0.4]
[1617250373531,2.5,1924.0,1923.9,0.4]
[1617250374375,1.5,1924.0,1923.9,0.4]
[1617250374607,2.50607434,1924.1,1923.9,0.4]
[1617250374809,2.50607434,1924.1,1924.0,19.28]
[1617250375008,10.01214893,1924.2,1924.1,15.85]
[1617250375009,10.0,1924.2,1924.1,15.85]
[1617250375209,10.0,1924.2,1924.1,25.0869]
[1617250375808,0.00607267,1924.7,1924.1,25.0869]
[1617250376011,0.00607267,1924.7,1924.6,0.4]
[1617250376211,0.018218,1924.9,1924.6,9.616]
[1617250376212,3.601e-05,1924.9,1924.6,9.616]
[1617250376407,2.53503601,1925.1,1924.8,0.4]
[1617250376608,0.14,1925.1,1924.8,0.4]
[1617250377610,0.14,1925.1,1924.7,0.28]
[1617250378012,8.49407608,1925.2,1924.7,0.28]
[1617250378209,8.63407608,1925.2,1924.7,0.28]
[1617250378409,8.54299217,1925.2,1924.7,0.28]
[1617250378613,8.63407689,1925.2,1924.7,0.28]
[1617250378811,0.14,1925.0,1924.5,0.322]
[1617250379010,7.7944,1924.8,1924.5,0.322]
[1617250379211,7.9344,1924.8,1924.2,0.28]
[1617250379411,7.9344,1924.8,1924.2,0.66]
[1617250379412,7.0344,1924.8,1924.2,0.66]
[1617250379614,7.0344,1924.8,1924.2,0.28]
[1617250379815,7.0344,1924.8,1923.7,0.09406894]
[1617250379816,0.14,1924.5,1923.7,0.09406894]
[1617250380012,0.14,1924.5,1923.9,0.35]
[1617250380013,0.54,1924.5,1923.9,0.35]
[1617250380212,0.54,1924.5,1923.7,0.09406894]
[1617250380213,16.20325,1924.2,1923.7,0.09406894]
[1617250380411,16.20325,1924.2,1923.6,1.28]
[1617250380613,2.77758956,1924.1,1923.6,1.0]
[1617250381213,3.17758956,1924.1,1923.6,1.0]
[1617250381412,1.77758956,1924.1,1923.6,1.0]
[1617250382028,1.77758956,1924.1,1923.7,0.41]
[1617250382228,7.79814,1923.9,1923.7,0.41]
[1617250382429,1.77758956,1924.1,1923.7,0.41]
[1617250382629,1.77758956,1924.1,1923.6,1.0]
[1617250382630,2.17758956,1924.1,1923.6,1.0]
[1617250383629,9.97511956,1924.1,1923.6,1.0]
[1617250384229,12.05469546,1924.1,1923.6,1.0]
[1617250384457,4.25716546,1924.1,1923.6,1.0]
[1617250384857,4.20716546,1924.1,1923.6,1.0]
[1617250386258,7.79807,1923.9,1923.6,1.0]
[1617250386461,6.79807,1923.9,1923.6,1.0]
[1617250387679,2.63124544,1923.8,1923.6,1.0]
[1617250387879,10.46174544,1923.8,1923.6,1.0]
[1617250388479,10.86174544,1923.8,1923.6,1.0]
[1617250388678,8.2305,1923.8,1923.6,1.0]
[1617250388878,16.74911,1923.7,1923.6,1.0]
[1617250391117,7.79911,1923.7,1923.6,1.0]
[1617250391515,6.79911,1923.7,1923.6,1.0]
[1617250391917,12.39911,1923.7,1923.6,1.0]
[1617250392323,6.79911,1923.7,1923.6,1.0]
[1617250392726,8.6969,1923.8,1923.6,1.0]
[1617250394231,16.49544,1923.8,1923.6,1.0]
[1617250394427,15.62904,1923.8,1923.6,1.0]
[1617250396451,14.62904,1923.8,1923.6,1.0]
[1617250397253,15.01904,1923.8,1923.6,1.0]
[1617250398274,14.62904,1923.8,1923.6,1.0]
[1617250399278,14.62904,1923.8,1923.6,0.49123573]
[1617250401503,13.62904,1923.8,1923.6,0.49123573]
[1617250402507,25.81387028,1923.7,1923.6,0.49123573]
[1617250402731,43.10291878,1923.7,1923.6,0.49123573]
[1617250402932,30.14,1923.6,1923.1,1.0]
[1617250403132,7.61573328,1923.5,1923.1,1.0]
[1617250403331,12.4703,1923.4,1923.1,1.0]
[1617250403730,2.60573328,1923.3,1923.1,1.0]
[1617250403932,25.44,1923.2,1923.1,1.0]
[1617250404132,38.45,1923.2,1923.1,1.0]
[1617250404535,39.92668742,1923.2,1923.1,1.0]
[1617250404930,38.45,1923.2,1923.1,1.0]
[1617250405133,38.54133082,1923.2,1923.1,1.0]
[1617250405350,38.54133082,1923.2,1923.0,0.082091]
[1617250405351,13.05,1923.1,1923.0,0.082091]
[1617250405551,18.06,1923.1,1923.0,0.082091]
[1617250405751,13.7132517,1923.2,1923.0,0.082091]
[1617250406152,5.7132517,1923.2,1923.0,0.472091]
[1617250406352,24.67702874,1923.4,1923.0,0.472091]
[1617250406353,25.48874044,1923.4,1923.0,0.472091]
[1617250406554,25.48874044,1923.4,1923.1,0.39]
[1617250406555,12.63548874,1923.4,1923.1,0.39]
[1617250406756,12.63548874,1923.4,1923.1,0.67]
[1617250406757,12.4832707,1923.4,1923.1,0.67]
[1617250407752,7.80079,1923.3,1923.1,0.67]
[1617250407974,7.80079,1923.3,1923.1,0.39]
[1617250411002,7.80079,1923.3,1923.0,0.082091]
[1617250411404,7.70079,1923.3,1923.0,0.482091]
[1617250411805,7.70079,1923.3,1923.0,0.082091]
[1617250412807,2.6008739,1923.2,1923.0,0.082091]
[1617250413630,11.31,1923.1,1923.0,0.082091]
[1617250413830,19.11175,1923.1,1923.0,0.082091]
[1617250414231,12.81175,1923.1,1923.0,0.082091]
[1617250414632,12.81175,1923.1,1923.0,0.472091]
[1617250414832,7.80175,1923.1,1923.0,0.472091]
[1617250415031,10.40028,1923.5,1923.0,0.472091]
[1617250415235,10.40028,1923.5,1923.3,0.38]
[1617250415432,12.4803357,1923.5,1923.3,0.38]
[1617250416052,7.79959,1923.4,1923.3,0.38]
[1617250416455,6.79959,1923.4,1923.3,0.38]
[1617250418680,12.24959,1923.4,1923.3,0.38]
[1617250418878,12.24959,1923.4,1923.0,0.082091]
[1617250419079,9.49101,1923.4,1923.1,0.4]
[1617250419279,17.49101,1923.4,1923.0,0.082091]
[1617250419478,9.49101,1923.4,1923.0,0.082091]
[1617250419680,7.80202,1923.2,1923.0,0.082091]
[1617250421524,6.80202,1923.2,1923.0,0.082091]
[1617250421929,8.0,1923.2,1923.0,0.082091]
[1617250422125,21.3940328,1923.3,1923.0,0.082091]
[1617250422325,29.3940328,1923.3,1923.0,0.082091]
[1617250423128,7.80269,1923.1,1923.0,0.082091]
[1617250426551,6.80269,1923.1,1923.0,0.082091]
[1617250431603,5.80269,1923.1,1923.0,0.082091]
[1617250436451,5.85329084,1923.1,1923.0,0.082091]
[1617250436650,4.80269,1923.1,1923.0,0.082091]
[1617250441386,12.30269,1923.1,1923.0,0.082091]
[1617250441582,11.30269,1923.1,1923.0,0.082091]
[1617250442210,3.80269,1923.1,1923.0,0.082091]
[1617250443413,10.30269,1923.1,1923.0,0.082091]
[1617250443815,18.30269,1923.1,1923.0,0.082091]
[1617250444016,10.30269,1923.1,1923.0,0.082091]
[1617250444217,18.30269,1923.1,1923.0,0.082091]
[1617250444420,26.95269,1923.1,1923.0,0.082091]
[1617250444614,18.30269,1923.1,1923.0,0.082091]
[1617250446268,3.80269,1923.1,1923.0,0.082091]
[1617250446468,2.80269,1923.1,1923.0,0.082091]
[1617250447067,17.80269,1923.1,1923.0,0.082091]
[1617250449069,17.80269,1923.1,1923.0,0.462091]
[1617250451505,16.80269,1923.1,1923.0,0.462091]
[1617250452505,15.0,1923.1,1923.0,0.462091]
[1617250453321,22.80088,1923.1,1923.0,0.462091]
[1617250454121,22.80088,1923.1,1923.0,0.082091]
[1617250455733,15.0,1923.1,1923.0,8.78990134]
[1617250455935,15.0,1923.1,1923.0,11.78990134]
[1617250456134,4.64400511,1924.5,1923.1,0.40906894]
[1617250456339,4.64400511,1924.5,1924.0,0.4]
[1617250456340,3.675,1924.5,1924.0,0.4]
[1617250456533,3.675,1924.5,1923.4,0.47906894]
[1617250456534,0.14,1924.5,1924.1,13.0090615]
[1617250456733,18.5218,1924.8,1924.2,3.01119786]
[1617250456936,1.4,1924.9,1924.2,3.01119786]
[1617250456937,1.0,1924.9,1924.5,0.371]
[1617250457136,0.27116201,1925.1,1924.7,10.9]
[1617250457335,3.535,1925.3,1925.1,8.15]
[1617250457534,1.0,1925.4,1925.2,3.28776206]
[1617250457735,3.535,1925.8,1925.4,10.4]
[1617250457957,3.535,1925.8,1925.7,0.39]
[1617250458158,3.535,1925.8,1925.5,8.0917]
[1617250458360,3.535,1925.8,1925.5,8.2317]
[1617250458561,0.4,1926.0,1925.5,8.2317]
[1617250458562,0.54211861,1926.2,1925.6,16.02612228]
[1617250458762,0.54211861,1926.2,1925.8,5.01]
[1617250458961,0.54211861,1926.2,1926.1,6.9729]
[1617250459161,1.0,1926.4,1926.1,9.19186368]
[1617250459361,1.39,1926.4,1926.1,6.5729]
[1617250459765,12.48590198,1926.3,1926.1,6.5729]
[1617250460161,9.8669383,1926.3,1926.1,6.5729]
[1617250460361,28.16896368,1926.2,1926.1,6.5729]
[1617250460594,28.55896368,1926.2,1926.1,6.5729]
[1617250460995,40.95896368,1926.2,1926.1,0.69656]
[1617250461196,40.95896368,1926.2,1925.2,15.2769]
[1617250461396,40.95896368,1926.2,1925.3,0.14]
[1617250461397,0.336,1925.9,1925.3,0.14]
[1617250461596,0.39,1925.5,1925.3,0.14]
[1617250461796,0.39,1925.5,1924.9,0.39]
[1617250461997,0.39,1925.5,1924.9,0.28]
[1617250462795,0.39,1925.2,1924.9,0.28]
[1617250463212,0.39,1925.2,1924.6,0.38]
[1617250463411,0.39,1925.2,1924.7,0.308]
[1617250465413,1.1644,1925.3,1924.7,0.708]
[1617250465613,1.5444,1925.3,1924.7,1.908]
[1617250465852,2.0781577,1925.5,1925.0,0.4]
[1617250466451,2.0781577,1925.5,1924.9,0.336]
[1617250466452,2.4781577,1925.5,1924.9,0.336]
[1617250466652,0.4,1925.4,1924.9,0.336]
[1617250466856,0.41,1925.1,1924.9,0.336]
[1617250467053,0.41,1925.1,1924.5,0.49406894]
[1617250467254,3.08455936,1925.1,1924.4,0.28]
[1617250467854,7.79538,1924.9,1924.4,0.28]
[1617250468053,0.4,1924.8,1924.4,0.28]
[1617250468252,0.54,1924.8,1924.4,0.28]
[1617250468855,6.6005,1924.8,1924.4,0.28]
[1617250469055,9.13505936,1924.8,1924.2,0.39]
[1617250469256,9.13505936,1924.8,1924.0,0.67]
[1617250469257,0.54,1924.6,1924.0,0.67]
[1617250469455,3.07455936,1924.6,1924.0,0.67]
[1617250469856,0.54,1924.6,1924.0,0.67]
[1617250471084,0.14,1924.6,1924.1,1.39]
[1617250471284,5.01,1924.9,1924.4,0.38]
[1617250471487,8.54241462,1925.0,1924.6,0.4]
[1617250471686,10.5987081,1925.1,1924.6,0.68]
[1617250471687,2.5987081,1925.1,1924.6,0.68]
[1617250472084,22.051,1925.3,1924.6,0.68]
[1617250472285,14.441,1925.3,1924.6,0.68]
[1617250472484,14.441,1925.3,1924.7,0.4]
[1617250472683,14.441,1925.3,1924.7,0.722]
[1617250472684,14.391,1925.3,1924.7,0.722]
[1617250473285,7.79417,1925.2,1924.7,0.722]
[1617250473486,7.79417,1925.2,1924.4,0.28]
[1617250473487,0.39,1924.9,1924.4,0.28]
[1617250473710,2.92455936,1924.9,1924.4,0.28]
[1617250473910,0.39,1924.9,1924.4,0.28]
[1617250474110,0.4,1924.8,1924.4,0.28]
[1617250476334,0.4,1924.8,1924.2,0.4]
[1617250476534,0.4,1924.7,1924.2,0.28]
[1617250476734,5.41,1924.7,1924.2,0.28]
[1617250477336,0.4,1924.7,1924.2,0.28]
[1617250477938,13.15,1924.9,1924.4,0.39]
[1617250478141,5.01,1924.9,1924.6,0.38]
[1617250478339,5.01,1925.1,1924.6,0.38]
[1617250478540,5.15,1925.1,1924.6,0.38]
[1617250478740,5.01,1924.9,1924.5,0.28]
[1617250478960,5.01,1924.9,1924.1,1.0]
[1617250479159,5.01,1924.9,1924.2,0.315]
[1617250479160,0.4,1924.7,1924.2,0.315]
[1617250479360,0.14,1924.8,1924.3,0.4]
[1617250479861,0.14,1924.8,1924.2,0.315]
[1617250480067,0.41,1924.7,1924.2,0.315]
[1617250480862,0.14,1924.8,1924.4,0.39]
[1617250481062,7.0885933,1925.1,1924.6,0.4]
[1617250481063,0.14,1925.0,1924.6,0.4]
[1617250481262,5.15,1925.0,1924.6,0.4]
[1617250481703,13.15,1925.0,1924.6,0.4]
[1617250481904,8.52,1925.0,1924.4,0.723]
[1617250482504,8.52,1925.0,1924.4,0.343]
[1617250482908,0.52,1925.0,1924.4,0.343]
[1617250483606,0.14,1925.0,1924.5,0.4]
[1617250483807,0.14,1925.0,1924.6,0.41]
[1617250484409,0.14,1925.0,1924.4,0.343]
[1617250484609,0.14,1925.0,1924.4,0.753]
[1617250484809,7.79399,1925.1,1924.7,0.4]
[1617250485009,2.4782648,1925.3,1924.6,0.287]
[1617250485811,10.4782648,1925.3,1924.6,0.287]
[1617250486013,2.4782648,1925.3,1924.6,0.287]
[1617250486830,5.01,1925.2,1924.6,0.287]
[1617250487030,5.55,1925.2,1924.6,0.287]
[1617250487234,13.34312,1925.2,1924.6,0.287]
[1617250487431,0.41,1925.1,1924.6,0.287]
[1617250489033,2.0784502,1925.0,1924.5,0.41]
[1617250489232,2.0784502,1925.0,1924.4,0.28]
[1617250489233,0.39,1924.8,1924.4,0.28]
[1617250489458,7.79521,1924.7,1924.4,0.28]
[1617250489658,0.39,1924.8,1924.4,0.28]
[1617250490058,10.53362,1924.9,1924.4,0.28]
[1617250490259,10.93362,1924.9,1924.4,0.28]
[1617250490459,7.79546,1924.6,1924.4,0.28]
[1617250491264,2.0787225,1924.8,1924.4,0.28]
[1617250491862,7.7945,1924.7,1924.4,0.28]
[1617250492685,7.7945,1924.7,1924.4,2.81455936]
[1617250492884,2.0787225,1924.8,1924.4,2.81455936]
[1617250493887,10.4123233,1924.9,1924.4,2.81455936]
[1617250494285,2.6183533,1924.9,1924.4,0.28]
[1617250494737,2.6183533,1924.9,1924.2,2.53455936]
[1617250494938,7.7947,1924.7,1924.2,10.99901936]
[1617250496143,7.7947,1924.7,1924.2,8.46446]
[1617250496542,7.7947,1924.7,1924.2,10.99901936]
[1617250496738,0.38,1924.6,1924.2,2.53455936]
[1617250497139,0.38,1924.6,1924.2,2.6286283]
[1617250497987,0.38,1924.6,1924.2,2.53455936]
[1617250498190,8.17507,1924.6,1924.2,2.53455936]
[1617250498589,0.38,1924.6,1924.2,2.53455936]
[1617250499390,0.38,1924.6,1924.2,11.52899936]
[1617250499590,2.0785865,1924.8,1924.2,11.52899936]
[1617250499793,2.4685865,1924.8,1924.3,0.48406894]
[1617250499996,2.4685865,1924.8,1924.4,2.52471122]
[1617250499997,2.0785865,1924.8,1924.4,2.52471122]
[1617250500199,0.54,1924.9,1924.4,2.52471122]
[1617250500396,0.54,1924.9,1924.3,0.39]
[1617250500996,8.33389,1924.9,1924.4,2.52471122]
[1617250501196,8.33389,1924.9,1924.3,8.18378]
[1617250501395,10.4123652,1924.9,1924.3,8.18378]
[1617250501596,10.2723652,1924.9,1924.4,2.52471122]
[1617250501799,2.7584752,1924.9,1924.3,8.18378]
[1617250501998,7.79456,1924.7,1924.4,2.52471122]
[1617250502197,7.79456,1924.7,1924.3,0.39]
[1617250502397,7.79456,1924.7,1924.2,2.52471122]
[1617250502625,7.79456,1924.7,1924.2,2.93471122]
[1617250503023,0.4,1924.6,1924.2,2.52471122]
[1617250503223,0.4,1924.6,1924.2,10.31903122]
[1617250503422,0.4,1924.6,1924.2,2.52471122]
[1617250504824,0.4,1924.6,1924.1,1.0]
[1617250504825,0.38,1924.4,1924.1,1.0]
[1617250505247,0.41,1924.5,1924.1,1.0]
[1617250505446,5.29,1924.7,1924.1,1.0]
[1617250505647,0.68,1924.7,1924.1,1.48406894]
[1617250505846,7.79527,1924.6,1924.1,1.48406894]
[1617250506047,7.79527,1924.6,1924.2,0.39]
[1617250506247,7.79527,1924.6,1924.3,0.39]
[1617250506646,7.79527,1924.6,1924.1,1.0]
[1617250506846,7.79527,1924.6,1924.1,1.4]
[1617250507050,7.79527,1924.6,1924.1,3.92471122]
[1617250507246,7.79527,1924.6,1924.1,1.4]
[1617250507445,7.79527,1924.6,1924.1,3.92471122]
[1617250508273,9.8740644,1924.6,1924.1,3.92471122]
[1617250508675,7.79546,1924.5,1924.1,3.92471122]
[1617250508873,8.18546,1924.5,1924.1,3.52471122]
[1617250509874,7.79546,1924.5,1924.1,3.52471122]
[1617250511905,7.79546,1924.5,1924.1,1.0]
[1617250512309,7.79546,1924.5,1924.1,3.52471122]
[1617250513318,7.79546,1924.5,1924.1,1.0]
[1617250513919,8.19546,1924.5,1924.1,1.0]
[1617250514519,7.79546,1924.5,1924.1,1.0]
[1617250514924,7.79546,1924.5,1924.2,0.41]
[1617250515319,7.79546,1924.5,1924.1,1.0]
[1617250516149,2.0789227,1924.4,1924.1,1.0]